[Event "WYCC U16 Girls 2019"]
[Site "Mumbai"]
[Date "2019.10.11"]
[Round "10.2"]
[White "Nurgali, Nazerke"]
[Black "Hajiyeva, Laman"]
[Result "1-0"]
[ECO "A40"]
[WhiteElo "2194"]
[BlackElo "2038"]
[Annotator "NA"]
[PlyCount "137"]
[EventDate "2019.10.02"]
[EventType "swiss"]
[EventCountry "IND"]
[SourceTitle "playchess.com"]
[Source "ChessBase"]
[SourceQuality "1"]
[TimeControl "5400+30"]

1. d4 {[%emt 0:00:00]} g6 {[%emt 0:00:00]} 2. c4 {[%emt 0:00:00]} Bg7 {[%emt 0:00:00]} 3. Nf3 {[%emt 0:00:16]} d6 {[%emt 0:00:00]} 4. Nc3 {[%emt 0:00:45]} Nd7 {[%emt 0:00:20]} 5. e4 {[%emt 0:01:26]} e5 {[%emt 0:01:08]} 6. Be2 {[%emt 0:00:21]} Ne7 {[%emt 0:01:11]} 7. Be3 {[%emt 0:04:12]} O-O {[%emt 0:01:26]} 8. O-O {[%emt 0:00:18]} h6 {[%emt 0:04:18]} 9. Qc1 {[%emt 0:10:15]} Kh7 {[%emt 0:02:37]} 10. dxe5 {[%emt 0:01:03]} dxe5 {[%emt 0:02:39]} 11. Rd1 {[%emt 0:00:28]} f5 {[%emt 0:08:57]} 12. Bc5 {[%emt 0:05:02]} Qe8 {[%emt 0:08:15]} 13. Ba3 {[%emt 0:03:38]} fxe4 {[%emt 0:12:34]} 14. Nxe4 {[%emt 0:00:48]} Rf4 {[%emt 0:09:59]} 15. Nc3 {[%emt 0:04:03]} c6 {[%emt 0:09:07]} 16. g3 {[%emt 0:01:20]} Rf7 {[%emt 0:01:24]} 17. Ne4 {[%emt 0:00:23]} Nf5 {[%emt 0:00:45]} 18. Qc2 {[%emt 0:07:05]} Nf6 {[%emt 0:03:45]} 19. Rd2 {[%emt 0:01:42]} b6 {[%emt 0:04:30]} 20. Rad1 {[%emt 0:01:40]} Ba6 {[%emt 0:01:50]} 21. b3 {[%emt 0:01:24]} c5 {[%emt 0:01:19]} 22. Nxf6+ {[%emt 0:04:51]} Bxf6 {[%emt 0:00:59]} 23. Bd3 {[%emt 0:00:30]} Bg7 {[%emt 0:05:59]} 24. Be4 {[%emt 0:02:26]} Bb7 {[%emt 0:01:05]} 25. Bxb7 {[%emt 0:01:09]} Rxb7 {[%emt 0:00:05]} 26. Qe4 {[%emt 0:00:07]} Re7 {[%emt 0:08:34]} 27. Rd5 {[%emt 0:02:54]} Nd4 {[%emt 0:01:40]} 28. Nh4 {[%emt 0:00:17]} Bf6 {[%emt 0:03:32]} 29. Ng2 {[%emt 0:03:33]} Rc8 {[%emt 0:00:36]} 30. h4 {[%emt 0:00:53]} h5 {[%emt 0:02:35]} 31. Bc1 {[%emt 0:00:44]} Qf7 {[%emt 0:00:17]} 32. Rd3 {[%emt 0:01:24]} Rf8 {[%emt 0:00:24]} 33. f3 {[%emt 0:02:06]} Qe6 {[%emt 0:01:38]} 34. Kh2 {[%emt 0:01:16]} Ref7 {[%emt 0:00:18]} 35. Ne1 {[%emt 0:02:18]} Rd7 {[%emt 0:02:22]} 36. Bb2 {[%emt 0:07:12]} Rxd5 {[%emt 0:00:23]} 37. cxd5 {[%emt 0:00:04]} Qd6 {[%emt 0:00:31]} 38. Ng2 {[%emt 0:00:20]} Qd7 {[%emt 0:01:05]} 39. g4 {[%emt 0:04:26]} hxg4 {[%emt 0:00:19]} 40. fxg4 {[%emt 0:00:04]} Bg7 {[%emt 0:00:50]} 41. h5 {[%emt 0:00:39]} Qd6 {[%emt 0:00:00]} 42. Rh3 {[%emt 0:00:00]} Rf2 {[%emt 0:00:00]} 43. hxg6+ {[%emt 0:00:00]} Kg8 {[%emt 0:00:00]} 44. Bxd4 {[%emt 0:00:00]} cxd4 {[%emt 0:00:00]} 45. Kg3 {[%emt 0:00:00]} Rf6 {[%emt 0:00:00]} 46. Nh4 {[%emt 0:00:00]} Rf4 {[%emt 0:00:00]} 47. Nf5 {[%emt 0:00:00]} Qb4 {[%emt 0:00:00]} 48. Qh1 {[%emt 0:00:00]} Qc3+ {[%emt 0:00:16]} 49. Kh4 {[%emt 0:00:00]} Bf6+ {[%emt 0:01:22]} 50. Kh5 {[%emt 0:00:00]} Rxf5+ {[%emt 0:00:38]} 51. gxf5 {[%emt 0:00:00]} Qd2 {[%emt 0:00:12]} 52. Qg1 {[%emt 0:00:00]} Kg7 {[%emt 0:00:06]} 53. Qg3 {[%emt 0:00:00]} Qc1 {[%emt 0:02:16]} 54. Kg4 {[%emt 0:00:00]} Qg5+ {[%emt 0:00:17]} 55. Kf3 {[%emt 0:00:00]} Qxf5+ {[%emt 0:00:09]} 56. Kg2 {[%emt 0:00:00]} Qxg6 {[%emt 0:00:54]} 57. Kf3 {[%emt 0:02:39]} Qxg3+ {[%emt 0:01:39]} 58. Rxg3+ {[%emt 0:00:05]} Kf7 {[%emt 0:00:03]} 59. Ke4 {[%emt 0:00:04]} Ke7 {[%emt 0:01:05]} 60. Rh3 {[%emt 0:00:12]} a6 {[%emt 0:01:04]} 61. Rh7+ {[%emt 0:00:25]} Kd6 {[%emt 0:00:10]} 62. Rf7 {[%emt 0:00:20]} Bg5 {[%emt 0:00:23]} 63. Rb7 {[%emt 0:00:30]} Bd8 {[%emt 0:00:37]} 64. Rh7 {[%emt 0:01:48]} Bg5 {[%emt 0:00:22]} 65. Rg7 {[%emt 0:00:29]} Bf4 {[%emt 0:00:22]} 66. Rb7 {[%emt 0:00:10]} Kc5 {[%emt 0:00:42]} 67. Rc7+ {[%emt 0:01:39]} Kb5 {[%emt 0:00:24]} 68. d6 {[%emt 0:00:42]} d3 {[%emt 0:00:05]} 69. d7 {[%emt 0:00:11]} 1-0

[Event "WYCC U16 Girls 2019"]
[Site "Mumbai"]
[Date "2019.10.11"]
[Round "10.3"]
[White "Salonika, Saina"]
[Black "Bulatova, Kamaliya"]
[Result "1/2-1/2"]
[ECO "B90"]
[WhiteElo "2051"]
[BlackElo "2181"]
[Annotator "NA"]
[PlyCount "93"]
[EventDate "2019.10.02"]
[EventType "swiss"]
[EventCountry "IND"]
[SourceTitle "playchess.com"]
[Source "ChessBase"]
[SourceQuality "1"]
[TimeControl "5400+30"]

1. e4 {[%emt 0:00:00]} c5 {[%emt 0:00:00]} 2. Nf3 {[%emt 0:00:00]} d6 {[%emt 0:00:00]} 3. d4 {[%emt 0:00:00]} cxd4 {[%emt 0:00:00]} 4. Nxd4 {[%emt 0:00:00]} Nf6 {[%emt 0:00:00]} 5. Nc3 {[%emt 0:00:00]} a6 {[%emt 0:00:00]} 6. Be3 {[%emt 0:00:00]} e5 {[%emt 0:00:00]} 7. Nf3 {[%emt 0:00:04]} Be7 {[%emt 0:00:00]} 8. Bc4 {[%emt 0:00:07]} Be6 {[%emt 0:00:03]} 9. Bb3 {[%emt 0:00:04]} Nbd7 {[%emt 0:00:11]} 10. O-O {[%emt 0:00:15]} Rc8 {[%emt 0:00:11]} 11. Qe2 {[%emt 0:12:03]} b5 {[%emt 0:10:38]} 12. Bxe6 {[%emt 0:24:40]} fxe6 {[%emt 0:00:15]} 13. Ng5 {[%emt 0:01:30]} Nf8 {[%emt 0:00:40]} 14. a4 {[%emt 0:12:54]} b4 {[%emt 0:03:41]} 15. Na2 {[%emt 0:00:07]} h6 {[%emt 0:01:44]} 16. Nf3 {[%emt 0:00:06]} a5 {[%emt 0:03:06]} 17. c3 {[%emt 0:00:27]} bxc3 {[%emt 0:12:39]} 18. Nxc3 {[%emt 0:00:33]} N8d7 {[%emt 0:00:18]} 19. h3 {[%emt 0:18:24]} O-O {[%emt 0:04:54]} 20. Rfd1 {[%emt 0:00:04]} Qe8 {[%emt 0:03:10]} 21. Nd2 {[%emt 0:05:56]} d5 {[%emt 0:04:31]} 22. exd5 {[%emt 0:00:06]} exd5 {[%emt 0:00:03]} 23. Ba7 {[%emt 0:01:12]} d4 {[%emt 0:04:11]} 24. Nb5 {[%emt 0:00:30]} Nd5 {[%emt 0:12:22]} 25. Qe4 {[%emt 0:06:14]} Qf7 {[%emt 0:04:40]} 26. Nf3 {[%emt 0:00:48]} Bb4 {[%emt 0:00:47]} 27. Rf1 {[%emt 0:03:16]} Rce8 {[%emt 0:01:10]} 28. Nh4 {[%emt 0:00:23]} Nf4 {[%emt 0:02:14]} 29. Kh2 {[%emt 0:04:39]} Nf6 {[%emt 0:06:10]} 30. Qf3 {[%emt 0:02:00]} Qd7 {[%emt 0:06:34]} 31. Rac1 {[%emt 0:01:49]} N6d5 {[%emt 0:01:46]} 32. Qe4 {[%emt 0:00:25]} Nxh3 {[%emt 0:02:27]} 33. Ng6 {[%emt 0:02:11]} Rxf2 {[%emt 0:03:14]} 34. Nxe5 {[%emt 0:00:10]} Qe6 {[%emt 0:04:02]} 35. Bxd4 {[%emt 0:00:11]} Ng5 {[%emt 0:01:06]} 36. Qh4 {[%emt 0:03:30]} Re2 {[%emt 0:01:47]} 37. Qg3 {[%emt 0:02:29]} Bd2 {[%emt 0:05:58]} 38. Rc6 {[%emt 0:00:36]} Qe7 {[%emt 0:00:09]} 39. Rg6 {[%emt 0:00:41]} Bf4 {[%emt 0:03:20]} 40. Rxf4 {[%emt 0:00:08]} Nxf4 {[%emt 0:00:03]} 41. Qxf4 {[%emt 0:00:00]} Re4 {[%emt 0:00:00]} 42. Qg3 {[%emt 0:00:00]} Rxd4 {[%emt 0:00:00]} 43. Nxd4 {[%emt 0:00:00]} Qxe5 {[%emt 0:00:00]} 44. Qxe5 {[%emt 0:00:00]} Rxe5 {[%emt 0:00:00]} 45. Nf3 {[%emt 0:00:00]} Nxf3+ {[%emt 0:00:00]} 46. gxf3 {[%emt 0:00:00]} Re2+ {[%emt 0:00:00]} 47. Kg3 {[%emt 0:00:00]} 1/2-1/2

[Event "WYCC U16 Girls 2019"]
[Site "Mumbai"]
[Date "2019.10.11"]
[Round "10.4"]
[White "Mahdian, Anousha"]
[Black "Loskutova, Viktoriya"]
[Result "1/2-1/2"]
[ECO "E20"]
[WhiteElo "2103"]
[BlackElo "2149"]
[Annotator "NA"]
[PlyCount "94"]
[EventDate "2019.10.02"]
[EventType "swiss"]
[EventCountry "IND"]
[SourceTitle "playchess.com"]
[Source "ChessBase"]
[SourceQuality "1"]
[TimeControl "5400+30"]

1. d4 {[%emt 0:00:00]} Nf6 {[%emt 0:00:00]} 2. c4 {[%emt 0:00:00]} e6 {[%emt 0:00:00]} 3. Nc3 {[%emt 0:00:00]} Bb4 {[%emt 0:00:00]} 4. g3 {[%emt 0:00:00]} d5 {[%emt 0:00:00]} 5. Bg2 {[%emt 0:00:14]} O-O {[%emt 0:00:02]} 6. Nf3 {[%emt 0:00:10]} dxc4 {[%emt 0:00:12]} 7. O-O {[%emt 0:00:07]} Nc6 {[%emt 0:00:08]} 8. Qa4 {[%emt 0:00:07]} Nd5 {[%emt 0:00:08]} 9. Qc2 {[%emt 0:00:04]} Be7 {[%emt 0:00:15]} 10. Rd1 {[%emt 0:00:07]} Rb8 {[%emt 0:00:18]} 11. e4 {[%emt 0:01:08]} Ncb4 {[%emt 0:00:33]} 12. Qd2 {[%emt 0:01:36]} Nxc3 {[%emt 0:00:28]} 13. Qxc3 {[%emt 0:00:50]} b5 {[%emt 0:00:28]} 14. b3 {[%emt 0:08:19]} Bb7 {[%emt 0:01:28]} 15. a3 {[%emt 0:22:34]} Nd3 {[%emt 0:08:36]} 16. bxc4 {[%emt 0:02:47]} bxc4 {[%emt 0:18:07]} 17. Qxc4 {[%emt 0:05:09]} Nxc1 {[%emt 0:00:06]} 18. Rdxc1 {[%emt 0:09:02]} Bxe4 {[%emt 0:01:47]} 19. Ne5 {[%emt 0:02:35]} Bxg2 {[%emt 0:00:56]} 20. Kxg2 {[%emt 0:00:02]} Rb6 {[%emt 0:13:11]} 21. Qxc7 {[%emt 0:11:28]} Qd5+ {[%emt 0:15:34]} 22. Kg1 {[%emt 0:00:54]} Rb7 {[%emt 0:01:41]} 23. Qc6 {[%emt 0:04:52]} Qxc6 {[%emt 0:02:02]} 24. Rxc6 {[%emt 0:05:09]} Rd8 {[%emt 0:01:09]} 25. Rc4 {[%emt 0:00:55]} Kf8 {[%emt 0:02:17]} 26. a4 {[%emt 0:03:47]} Bd6 {[%emt 0:08:18]} 27. Rac1 {[%emt 0:04:24]} Bxe5 {[%emt 0:04:13]} 28. dxe5 {[%emt 0:01:48]} Ke7 {[%emt 0:01:36]} 29. f4 {[%emt 0:05:34]} Rd5 {[%emt 0:03:58]} 30. Rc8 {[%emt 0:02:53]} Rd8 {[%emt 0:04:50]} 31. R8c5 {[%emt 0:04:43]} Rbd7 {[%emt 0:04:34]} 32. Ra5 {[%emt 0:03:43]} Rb8 {[%emt 0:03:40]} 33. Rc2 {[%emt 0:00:46]} Rbd8 {[%emt 0:03:55]} 34. Kf2 {[%emt 0:00:20]} Rd2+ {[%emt 0:01:09]} 35. Rxd2 {[%emt 0:00:01]} Rxd2+ {[%emt 0:00:01]} 36. Ke3 {[%emt 0:00:09]} Rd7 {[%emt 0:00:08]} 37. Rb5 {[%emt 0:00:42]} h5 {[%emt 0:01:33]} 38. Rb8 {[%emt 0:00:36]} g6 {[%emt 0:00:36]} 39. h3 {[%emt 0:00:47]} Rc7 {[%emt 0:00:51]} 40. Kd4 {[%emt 0:00:44]} Kd7 {[%emt 0:00:26]} 41. g4 {[%emt 0:00:00]} hxg4 {[%emt 0:00:00]} 42. hxg4 {[%emt 0:00:00]} Ke7 {[%emt 0:00:00]} 43. a5 {[%emt 0:00:00]} Kd7 {[%emt 0:00:00]} 44. Rb2 {[%emt 0:00:00]} Kc6 {[%emt 0:00:00]} 45. Rc2+ {[%emt 0:00:00]} Kb7 {[%emt 0:00:00]} 46. Rxc7+ {[%emt 0:00:00]} Kxc7 {[%emt 0:00:00]} 47. Kc5 {[%emt 0:00:00]} Kd7 {[%emt 0:00:00]} 1/2-1/2

[Event "WYCC U16 Girls 2019"]
[Site "Mumbai"]
[Date "2019.10.11"]
[Round "10.5"]
[White "Beydullayeva, Govhar"]
[Black "Ciolacu, Alessia-Mihaela"]
[Result "1-0"]
[ECO "E17"]
[WhiteElo "2289"]
[BlackElo "2095"]
[Annotator "NA"]
[PlyCount "69"]
[EventDate "2019.10.02"]
[EventType "swiss"]
[EventCountry "IND"]
[SourceTitle "playchess.com"]
[Source "ChessBase"]
[SourceQuality "1"]
[TimeControl "5400+30"]

1. d4 {[%emt 0:00:00]} Nf6 2. c4 {[%emt 0:00:00]} e6 {[%emt 0:00:00]} 3. Nf3 {[%emt 0:00:00]} b6 {[%emt 0:00:00]} 4. g3 {[%emt 0:00:00]} Bb7 {[%emt 0:00:04]} 5. Bg2 {[%emt 0:00:00]} Be7 {[%emt 0:00:14]} 6. O-O {[%emt 0:00:14]} O-O {[%emt 0:00:20]} 7. Re1 {[%emt 0:00:12]} Na6 $11 {[%emt 0:00:24]} 8. a3 {[%emt 0:06:01]} d5 {[%emt 0:10:14]} 9. cxd5 {[%emt 0:00:56]} exd5 {[%emt 0:00:14]} 10. Nc3 {[%emt 0:03:01]} c5 {[%emt 0:01:35]} 11. Bf4 {[%emt 0:02:50]} Ne4 {[%emt 0:14:58]} 12. Rc1 {[%emt 0:12:41]} Re8 {[%emt 0:03:12]} 13. dxc5 {[%emt 0:03:54]} Bxc5 {[%emt 0:07:00]} 14. Nd4 {[%emt 0:01:45]} Qf6 {[%emt 0:10:24]} 15. Be3 {[%emt 0:06:43]} Nc7 {[%emt 0:09:06]} 16. b4 {[%emt 0:06:15]} Nxc3 {[%emt 0:03:24]} 17. Rxc3 {[%emt 0:00:12]} Bd6 {[%emt 0:00:07]} 18. Qb3 {[%emt 0:12:09]} Be5 {[%emt 0:03:59]} 19. Rd3 {[%emt 0:00:53]} Ne6 {[%emt 0:24:33]} 20. Nf3 {[%emt 0:01:55]} Bc7 {[%emt 0:01:26]} 21. Nd2 {[%emt 0:09:05]} d4 {[%emt 0:02:29]} 22. Bxb7 {[%emt 0:01:55]} dxe3 {[%emt 0:00:13]} 23. Rxe3 {[%emt 0:00:37]} Rab8 {[%emt 0:01:58]} 24. Bg2 {[%emt 0:01:26]} Nd4 {[%emt 0:01:29]} 25. Rxe8+ {[%emt 0:02:19]} Rxe8 {[%emt 0:00:05]} 26. Qc4 {[%emt 0:01:51]} Qe5 {[%emt 0:00:56]} 27. e3 {[%emt 0:01:31]} Ne6 {[%emt 0:00:42]} 28. Nf3 {[%emt 0:03:17]} Qb2 {[%emt 0:00:25]} 29. Qc6 {[%emt 0:04:23]} Rd8 {[%emt 0:00:40]} 30. Bh3 {[%emt 0:01:01]} Bb8 {[%emt 0:02:12]} 31. Bxe6 {[%emt 0:00:36]} fxe6 {[%emt 0:00:01]} 32. Qxe6+ {[%emt 0:00:05]} Kh8 {[%emt 0:00:39]} 33. Ng5 {[%emt 0:00:30]} Qf6 {[%emt 0:00:42]} 34. Qxf6 {[%emt 0:00:09]} gxf6 {[%emt 0:00:05]} 35. Nf7+ {[%emt 0:00:03]} 1-0

[Event "WYCC U16 Girls 2019"]
[Site "Mumbai"]
[Date "2019.10.11"]
[Round "10.6"]
[White "Demchenko, Svitlana"]
[Black "Mrudul Dehankar"]
[Result "1-0"]
[ECO "B03"]
[WhiteElo "1953"]
[BlackElo "2227"]
[Annotator "NA"]
[PlyCount "107"]
[EventDate "2019.10.02"]
[EventType "swiss"]
[EventCountry "IND"]
[SourceTitle "playchess.com"]
[Source "ChessBase"]
[SourceQuality "1"]
[TimeControl "5400+30"]

1. e4 {[%emt 0:00:00]} Nf6 {[%emt 0:00:00]} 2. e5 {[%emt 0:00:00]} Nd5 {[%emt 0:00:00]} 3. d4 {[%emt 0:00:00]} d6 {[%emt 0:00:00]} 4. c4 {[%emt 0:00:10]} Nb6 {[%emt 0:00:00]} 5. exd6 {[%emt 0:00:25]} cxd6 {[%emt 0:00:03]} 6. Nc3 {[%emt 0:00:33]} g6 {[%emt 0:00:20]} 7. Be3 {[%emt 0:00:19]} Bg7 {[%emt 0:00:16]} 8. Rc1 {[%emt 0:00:57]} O-O {[%emt 0:00:52]} 9. b3 {[%emt 0:02:20]} Nc6 {[%emt 0:03:02]} 10. Be2 {[%emt 0:00:20]} Bf5 {[%emt 0:04:54]} 11. d5 {[%emt 0:06:58]} Nb4 {[%emt 0:06:33]} 12. a3 {[%emt 0:06:23]} Na6 {[%emt 0:09:57]} 13. Nf3 {[%emt 0:02:30]} Nc5 {[%emt 0:05:47]} 14. Nd4 {[%emt 0:02:17]} Bd7 {[%emt 0:06:13]} 15. b4 {[%emt 0:03:36]} Nca4 {[%emt 0:09:52]} 16. Nxa4 {[%emt 0:01:24]} Bxa4 {[%emt 0:03:53]} 17. Qd2 {[%emt 0:00:43]} Bd7 {[%emt 0:07:10]} 18. Bf3 {[%emt 0:16:38]} Bc8 {[%emt 0:13:04]} 19. Bh6 {[%emt 0:16:26]} e5 {[%emt 0:07:19]} 20. dxe6 {[%emt 0:04:40]} Bxh6 {[%emt 0:03:49]} 21. Qxh6 {[%emt 0:00:40]} Qf6 {[%emt 0:01:24]} 22. Qe3 {[%emt 0:01:47]} fxe6 {[%emt 0:05:05]} 23. O-O {[%emt 0:02:11]} Qf7 {[%emt 0:04:54]} 24. Nb5 {[%emt 0:03:53]} Rd8 {[%emt 0:05:35]} 25. Nxa7 {[%emt 0:02:16]} Na4 {[%emt 0:01:51]} 26. Nxc8 {[%emt 0:02:15]} Rdxc8 {[%emt 0:00:03]} 27. Rfe1 {[%emt 0:02:14]} Re8 {[%emt 0:00:35]} 28. Qd4 {[%emt 0:05:18]} Qc7 {[%emt 0:00:52]} 29. Red1 {[%emt 0:04:17]} Rad8 {[%emt 0:00:31]} 30. Rc2 {[%emt 0:03:43]} Nb6 {[%emt 0:00:28]} 31. Rdc1 {[%emt 0:00:34]} Nd7 {[%emt 0:00:32]} 32. Qe4 {[%emt 0:02:09]} Rb8 {[%emt 0:00:27]} 33. Bg4 {[%emt 0:01:09]} Nf6 {[%emt 0:00:32]} 34. Bxe6+ {[%emt 0:02:02]} Kg7 {[%emt 0:00:28]} 35. Qe1 {[%emt 0:00:01]} Re7 {[%emt 0:00:34]} 36. Re2 {[%emt 0:00:12]} Rbe8 {[%emt 0:00:05]} 37. Re3 {[%emt 0:01:41]} Qb6 {[%emt 0:00:40]} 38. Rcc3 {[%emt 0:00:57]} Qd4 {[%emt 0:00:43]} 39. Rcd3 {[%emt 0:00:54]} Qb6 {[%emt 0:00:29]} 40. h3 {[%emt 0:01:17]} h5 {[%emt 0:00:31]} 41. a4 {[%emt 0:00:00]} Qc6 {[%emt 0:00:00]} 42. a5 {[%emt 0:00:00]} Qc7 {[%emt 0:00:00]} 43. Bd5 {[%emt 0:00:00]} Re5 {[%emt 0:00:00]} 44. Rxe5 {[%emt 0:00:00]} dxe5 {[%emt 0:00:00]} 45. Qe3 {[%emt 0:00:00]} e4 {[%emt 0:00:00]} 46. Rd1 {[%emt 0:00:00]} Re7 {[%emt 0:00:00]} 47. Qd4 {[%emt 0:00:00]} h4 {[%emt 0:01:36]} 48. Ra1 {[%emt 0:00:00]} Qd6 {[%emt 0:01:03]} 49. b5 {[%emt 0:00:00]} Qb4 {[%emt 0:00:54]} 50. a6 {[%emt 0:00:00]} Rd7 {[%emt 0:00:34]} 51. a7 {[%emt 0:00:00]} Rxd5 {[%emt 0:00:10]} 52. Qxf6+ {[%emt 0:00:00]} Kxf6 {[%emt 0:00:04]} 53. cxd5 {[%emt 0:00:00]} e3 {[%emt 0:01:00]} 54. fxe3 {[%emt 0:00:00]} 1-0

[Event "WYCC U16 Girls 2019"]
[Site "Mumbai"]
[Date "2019.10.11"]
[Round "10.7"]
[White "Savitha Shri B"]
[Black "Bommini Mounika Akshaya"]
[Result "0-1"]
[ECO "A05"]
[WhiteElo "1916"]
[BlackElo "2017"]
[Annotator "NA"]
[PlyCount "108"]
[EventDate "2019.10.02"]
[EventType "swiss"]
[EventCountry "IND"]
[SourceTitle "playchess.com"]
[Source "ChessBase"]
[SourceQuality "1"]
[TimeControl "5400+30"]

1. Nf3 {[%emt 0:00:00]} Nf6 {[%emt 0:00:00]} 2. g3 {[%emt 0:00:00]} b6 {[%emt 0:00:00]} 3. Bg2 {[%emt 0:00:00]} Bb7 {[%emt 0:00:00]} 4. O-O {[%emt 0:00:00]} e6 {[%emt 0:00:07]} 5. c4 {[%emt 0:00:05]} Be7 {[%emt 0:00:19]} 6. b3 {[%emt 0:01:04]} O-O {[%emt 0:00:09]} 7. Bb2 {[%emt 0:00:02]} c5 {[%emt 0:00:14]} 8. e3 {[%emt 0:00:38]} d6 {[%emt 0:04:38]} 9. d4 {[%emt 0:00:07]} Nbd7 {[%emt 0:01:29]} 10. Nbd2 {[%emt 0:00:39]} Qc7 {[%emt 0:00:21]} 11. Qc2 {[%emt 0:00:28]} Rac8 {[%emt 0:04:42]} 12. Rac1 {[%emt 0:01:15]} Qb8 {[%emt 0:00:26]} 13. Qb1 {[%emt 0:00:08]} Qa8 {[%emt 0:00:33]} 14. Qa1 {[%emt 0:04:16]} Rfe8 {[%emt 0:06:22]} 15. Rfe1 {[%emt 0:10:42]} Ne4 {[%emt 0:15:07]} 16. Bh3 {[%emt 0:00:42]} Ndf6 {[%emt 0:18:51]} 17. Nxe4 {[%emt 0:05:35]} Nxe4 {[%emt 0:08:44]} 18. d5 {[%emt 0:00:35]} exd5 {[%emt 0:00:52]} 19. Bxg7 {[%emt 0:04:04]} d4 {[%emt 0:01:39]} 20. Bh6 {[%emt 0:05:24]} Bf6 {[%emt 0:08:03]} 21. Qb1 {[%emt 0:04:35]} Nxf2 {[%emt 0:07:04]} 22. Kxf2 {[%emt 0:02:35]} Be4 {[%emt 0:00:06]} 23. Rc2 {[%emt 0:03:13]} Bxf3 {[%emt 0:01:09]} 24. Rd2 {[%emt 0:00:47]} Be4 {[%emt 0:05:34]} 25. Qd1 {[%emt 0:00:06]} dxe3+ {[%emt 0:02:04]} 26. Bxe3 {[%emt 0:02:54]} Bc3 {[%emt 0:01:53]} 27. Bh6 {[%emt 0:05:36]} Rcd8 {[%emt 0:02:49]} 28. Re3 {[%emt 0:03:05]} Bf6 {[%emt 0:03:43]} 29. Kg1 {[%emt 0:11:36]} Bg6 {[%emt 0:02:08]} 30. Rf3 {[%emt 0:06:41]} Bd4+ {[%emt 0:02:29]} 31. Rxd4 {[%emt 0:00:08]} cxd4 {[%emt 0:00:01]} 32. Qxd4 {[%emt 0:00:12]} Re5 {[%emt 0:00:05]} 33. Bg2 {[%emt 0:00:35]} Qc8 {[%emt 0:00:25]} 34. b4 {[%emt 0:02:15]} Qe6 {[%emt 0:00:45]} 35. h4 {[%emt 0:00:35]} Re1+ {[%emt 0:00:21]} 36. Kh2 {[%emt 0:01:20]} Qe5 {[%emt 0:00:06]} 37. Qg4 {[%emt 0:01:12]} Re4 {[%emt 0:00:29]} 38. Qh3 {[%emt 0:04:32]} Qe6 {[%emt 0:00:46]} 39. Qxe6 {[%emt 0:01:58]} fxe6 {[%emt 0:00:50]} 40. Rf6 {[%emt 0:00:55]} Rxc4 {[%emt 0:00:38]} 41. Rxe6 {[%emt 0:00:38]} Bf7 {[%emt 0:00:23]} 42. Re7 {[%emt 0:00:25]} Rxb4 {[%emt 0:00:00]} 43. Rxa7 Rb2 {[%emt 0:00:00]} 44. Kh3 {[%emt 0:00:00]} Rxa2 {[%emt 0:00:00]} 45. Rxf7 {[%emt 0:00:00]} Kxf7 {[%emt 0:00:00]} 46. Bd5+ {[%emt 0:00:00]} Kg6 {[%emt 0:00:00]} 47. Be3 {[%emt 0:00:00]} Rb2 {[%emt 0:00:00]} 48. h5+ {[%emt 0:00:00]} Kf5 {[%emt 0:00:00]} 49. Bc4 {[%emt 0:00:00]} Ke4 {[%emt 0:00:00]} 50. Bg5 {[%emt 0:00:00]} d5 {[%emt 0:00:00]} 51. Ba6 {[%emt 0:00:00]} Rg8 {[%emt 0:00:00]} 52. Bf4 {[%emt 0:00:00]} b5 {[%emt 0:00:00]} 53. h6 {[%emt 0:00:00]} b4 {[%emt 0:00:00]} 54. Bb5 {[%emt 0:00:00]} b3 {[%emt 0:00:00]} 0-1

[Event "WYCC U16 Girls 2019"]
[Site "Mumbai"]
[Date "2019.10.11"]
[Round "10.8"]
[White "Dahampriya, H K T Dewnethmie"]
[Black "Srdanovic, Jovana"]
[Result "1/2-1/2"]
[ECO "B31"]
[WhiteElo "1629"]
[BlackElo "2100"]
[Annotator "NA"]
[PlyCount "105"]
[EventDate "2019.10.02"]
[EventType "swiss"]
[EventCountry "IND"]
[SourceTitle "playchess.com"]
[Source "ChessBase"]
[SourceQuality "1"]
[TimeControl "5400+30"]

1. e4 c5 2. Nf3 Nc6 3. Bb5 g6 4. O-O Bg7 5. Re1 Nf6 6. Bxc6 bxc6 7. c4 O-O 8. Nc3 d6 9. d3 e5 10. Bg5 h6 11. Be3 Ng4 12. Bd2 f5 13. h3 Nf6 14. Nh4 Kh7 15. g3 f4 16. Kh2 Ng8 17. Nf3 fxg3+ 18. fxg3 Rb8 19. b3 Rb7 20. Qe2 Rbf7 21. Rf1 Ne7 22. Ng1 d5 23. Rxf7 Rxf7 24. Rf1 Rxf1 25. Qxf1 Be6 26. Qe2 Qd6 27. Na4 Nc8 28. Be3 d4 29. Bc1 Nb6 30. Nb2 Bf6 31. Qe1 Qe7 32. Nf3 Qd7 33. Qd2 Bg7 34. Ng1 Qf7 35. Kg2 Bf8 36. Qf2 Qg7 37. Qf3 Be7 38. Qe2 Bf6 39. Qf2 Qe7 40. Nf3 Qg7 41. Qd2 Bc8 42. Ng1 Bg5 43. Qe1 Bxc1 44. Qxc1 Qe7 45. Nd1 Nd7 46. Nb2 Nb6 47. Nd1 Kg7 48. Nf2 Na8 49. Qa3 Nb6 50. Qc1 Be6 51. Nf3 Bd7 52. Qa3 Bc8 53. Qa5 1/2-1/2